[Event "*** Titled Tuesday Blitz"]
[Site "Chess.com"]
[Date "2021.02.02"]
[Round "11"]
[White "ural58"]
[Black "Kovalchuk94"]
[Result "0-1"]
[WhiteElo "2488"]
[BlackElo "2639"]
[TimeControl "180+1"]
[EndTime "12:08:38 PST"]
[Termination "Kovalchuk94 won on time"]

1. e4 {[%clk 0:03:00.9]} 1... e5 {[%clk 0:02:58.9]} 2. f4 {[%clk 0:02:55.8]}
2... exf4 {[%clk 0:02:58.2]} 3. Bc4 {[%clk 0:02:55.1]} 3... Nf6 {[%clk
0:02:51.9]} 4. Nc3 {[%clk 0:02:54.6]} 4... c6 {[%clk 0:02:51.2]} 5. Bb3 {[%clk
0:02:54]} 5... d5 {[%clk 0:02:49.6]} 6. exd5 {[%clk 0:02:54.1]} 6... cxd5 {[%clk
0:02:49.8]} 7. d4 {[%clk 0:02:54.3]} 7... Bd6 {[%clk 0:02:49.5]} 8. Nge2 {[%clk
0:02:53.4]} 8... f3 {[%clk 0:02:44.6]} 9. gxf3 {[%clk 0:02:53.5]} 9... O-O
{[%clk 0:02:44.3]} 10. Bg5 {[%clk 0:02:52.8]} 10... h6 {[%clk 0:02:42.2]} 11.
Bh4 {[%clk 0:02:51.2]} 11... Be6 {[%clk 0:02:31.4]} 12. Qd2 {[%clk 0:02:50.2]}
12... Nbd7 {[%clk 0:02:27.9]} 13. O-O-O {[%clk 0:02:49.3]} 13... Nb6 {[%clk
0:02:28.1]} 14. Rhg1 {[%clk 0:02:40.1]} 14... Kh8 {[%clk 0:02:27.3]} 15. Nf4
{[%clk 0:02:11.3]} 15... Qc7 {[%clk 0:02:05.5]} 16. Nxe6 {[%clk 0:01:58.6]}
16... fxe6 {[%clk 0:02:04.5]} 17. Nb5 {[%clk 0:01:47]} 17... Qd7 {[%clk
0:02:03.3]} 18. Nxd6 {[%clk 0:01:46.7]} 18... Qxd6 {[%clk 0:02:04.2]} 19. Rg6
{[%clk 0:01:32.1]} 19... Ng8 {[%clk 0:01:46.9]} 20. Rdg1 {[%clk 0:01:30.2]}
20... Rf7 {[%clk 0:01:23.7]} 21. Bg3 {[%clk 0:01:30.1]} 21... Qe7 {[%clk
0:01:15.1]} 22. Be5 {[%clk 0:01:30]} 22... Kh7 {[%clk 0:00:58.3]} 23. Rxg7+
{[%clk 0:01:27.3]} 23... Rxg7 {[%clk 0:00:58.1]} 24. Rxg7+ {[%clk 0:01:27.9]}
24... Qxg7 {[%clk 0:00:58.9]} 25. Bxg7 {[%clk 0:01:28.4]} 25... Kxg7 {[%clk
0:00:59.8]} 26. c3 {[%clk 0:01:04.5]} 26... Rf8 {[%clk 0:00:59]} 27. Bc2 {[%clk
0:01:02.9]} 27... Ne7 {[%clk 0:00:54]} 28. Qe3 {[%clk 0:01:00.3]} 28... Rf6
{[%clk 0:00:50.9]} 29. b3 {[%clk 0:00:53.2]} 29... Nd7 {[%clk 0:00:48.9]} 30. c4
{[%clk 0:00:51.9]} 30... Kf7 {[%clk 0:00:39]} 31. Kb2 {[%clk 0:00:50]} 31... b6
{[%clk 0:00:38.3]} 32. a4 {[%clk 0:00:49.6]} 32... a5 {[%clk 0:00:28.2]} 33. c5
{[%clk 0:00:42.2]} 33... bxc5 {[%clk 0:00:23.4]} 34. dxc5 {[%clk 0:00:42.4]}
34... e5 {[%clk 0:00:24.3]} 35. Qd3 {[%clk 0:00:27.6]} 35... Nxc5 {[%clk
0:00:21.8]} 36. Qh7+ {[%clk 0:00:26.5]} 36... Ke6 {[%clk 0:00:21.8]} 37. b4
{[%clk 0:00:20.6]} 37... axb4 {[%clk 0:00:21.8]} 38. a5 {[%clk 0:00:21.2]} 38...
Rxf3 {[%clk 0:00:14.9]} 39. Qxh6+ {[%clk 0:00:21]} 39... Rf6 {[%clk 0:00:15.1]}
40. Qh3+ {[%clk 0:00:21.2]} 40... Kd6 {[%clk 0:00:15.6]} 41. Qg3 {[%clk
0:00:19.2]} 41... Nc6 {[%clk 0:00:14.7]} 42. Qg7 {[%clk 0:00:16.9]} 42... Rf2
{[%clk 0:00:11.3]} 43. Qg3 {[%clk 0:00:14.8]} 43... Rf6 {[%clk 0:00:09.4]} 44.
Qg5 {[%clk 0:00:13.2]} 44... Rf4 {[%clk 0:00:07.8]} 45. Qh6+ {[%clk 0:00:13.4]}
45... Kc7 {[%clk 0:00:07.3]} 46. h4 {[%clk 0:00:12.5]} 46... Nxa5 {[%clk
0:00:07.3]} 47. Qg7+ {[%clk 0:00:11.8]} 47... Kd6 {[%clk 0:00:07.6]} 48. h5
{[%clk 0:00:12.1]} 48... Nc4+ {[%clk 0:00:07.7]} 49. Ka2 {[%clk 0:00:09.8]}
49... b3+ {[%clk 0:00:07.4]} 50. Bxb3 {[%clk 0:00:09.9]} 50... Rf2+ {[%clk
0:00:07.7]} 51. Kb1 {[%clk 0:00:10.2]} 51... Nxb3 {[%clk 0:00:08]} 52. Qg6+
{[%clk 0:00:09.3]} 52... Kc5 {[%clk 0:00:08.3]} 53. Qg1 {[%clk 0:00:08.4]} 53...
Nbd2+ {[%clk 0:00:08.5]} 54. Ka1 {[%clk 0:00:08]} 54... Ne4 {[%clk 0:00:08.3]}
55. h6 {[%clk 0:00:07.5]} 55... Na3 {[%clk 0:00:04.1]} 56. Qxf2+ {[%clk
0:00:07.2]} 56... Nxf2 {[%clk 0:00:03.9]} 57. h7 {[%clk 0:00:08.1]} 57... Nc2+
{[%clk 0:00:04.4]} 58. Kb2 {[%clk 0:00:07.6]} 58... Nb4 {[%clk 0:00:03.9]} 59.
h8=Q {[%clk 0:00:07.6]} 59... Nfd3+ {[%clk 0:00:04.2]} 60. Kb3 {[%clk
0:00:07.4]} 60... e4 {[%clk 0:00:02.9]} 61. Qe8 {[%clk 0:00:04.7]} 61... Kd4
{[%clk 0:00:03]} 62. Qd8 {[%clk 0:00:02.6]} 62... Ke3 {[%clk 0:00:03]} 63. Qf6
{[%clk 0:00:03.1]} 63... Ke2 {[%clk 0:00:02.9]} 64. Qh4 {[%clk 0:00:02.3]} 64...
Ke3 {[%clk 0:00:03.3]} 65. Qg3+ {[%clk 0:00:02.4]} 65... Ke2 {[%clk 0:00:03.8]}
66. Qg2+ {[%clk 0:00:02.6]} 66... Ke3 {[%clk 0:00:04.1]} 67. Qg3+ {[%clk
0:00:03.3]} 67... Kd4 {[%clk 0:00:04.4]} 68. Qg7+ {[%clk 0:00:03.1]} 68... Kc5
{[%clk 0:00:04.1]} 69. Qf8+ {[%clk 0:00:03.1]} 69... Kc6 {[%clk 0:00:03.1]} 70.
Qg7 {[%clk 0:00:03.3]} 70... Na6 {[%clk 0:00:01.3]} 71. Qf6+ {[%clk 0:00:03.2]}
71... Kb5 {[%clk 0:00:01.8]} 72. Kc3 {[%clk 0:00:03]} 72... Ndc5 {[%clk
0:00:01.3]} 73. Kd4 {[%clk 0:00:02.5]} 73... Nb4 {[%clk 0:00:01.7]} 0-1

[Event "*** Titled Tuesday Blitz"]
[Site "Chess.com"]
[Date "2021.02.02"]
[Round "11"]
[White "Man-Chuk"]
[Black "Arseniy_Nesterov"]
[Result "1-0"]
[WhiteElo "2937"]
[BlackElo "2837"]
[TimeControl "180+1"]
[EndTime "12:08:44 PST"]
[Termination "Man-Chuk won on time"]

1. c4 {[%clk 0:02:57.2]} 1... e5 {[%clk 0:03:00]} 2. Nc3 {[%clk 0:02:55.2]} 2...
Bb4 {[%clk 0:03:00.2]} 3. Nd5 {[%clk 0:02:54.9]} 3... Bc5 {[%clk 0:03:00.2]} 4.
Nf3 {[%clk 0:02:54]} 4... c6 {[%clk 0:02:58.3]} 5. Nc3 {[%clk 0:02:53.3]} 5...
d6 {[%clk 0:02:58.6]} 6. e3 {[%clk 0:02:48.9]} 6... Qe7 {[%clk 0:02:58.5]} 7. d4
{[%clk 0:02:19.9]} 7... exd4 {[%clk 0:02:58]} 8. Nxd4 {[%clk 0:02:20.8]} 8...
Nf6 {[%clk 0:02:58.4]} 9. Be2 {[%clk 0:02:20.7]} 9... O-O {[%clk 0:02:57.8]} 10.
O-O {[%clk 0:02:21.1]} 10... Nbd7 {[%clk 0:02:23.6]} 11. b3 {[%clk 0:01:57.2]}
11... Ne5 {[%clk 0:02:21.7]} 12. Bb2 {[%clk 0:01:56.9]} 12... a5 {[%clk
0:02:20.8]} 13. h3 {[%clk 0:01:56.2]} 13... Re8 {[%clk 0:02:13.2]} 14. Re1
{[%clk 0:01:50.6]} 14... Bd7 {[%clk 0:02:08.1]} 15. Kh1 {[%clk 0:01:43.3]} 15...
Rad8 {[%clk 0:02:00.9]} 16. a3 {[%clk 0:01:40.4]} 16... Bc8 {[%clk 0:01:58.2]}
17. Qd2 {[%clk 0:01:35.4]} 17... d5 {[%clk 0:01:47]} 18. cxd5 {[%clk 0:01:29.6]}
18... cxd5 {[%clk 0:01:42.6]} 19. Bb5 {[%clk 0:01:01.5]} 19... Bd7 {[%clk
0:01:37.4]} 20. Bxd7 {[%clk 0:00:59.6]} 20... Qxd7 {[%clk 0:01:38.3]} 21. Rad1
{[%clk 0:00:55.2]} 21... Ne4 {[%clk 0:01:23.1]} 22. Qc2 {[%clk 0:00:33.3]} 22...
Bxd4 {[%clk 0:00:50.9]} 23. Rxd4 {[%clk 0:00:30.3]} 23... Nf3 {[%clk 0:00:46.7]}
24. Nxe4 {[%clk 0:00:11.3]} 24... Nxd4 {[%clk 0:00:37.9]} 25. Nf6+ {[%clk
0:00:10.4]} 25... gxf6 {[%clk 0:00:36.7]} 26. Bxd4 {[%clk 0:00:11.3]} 26... Qe6
{[%clk 0:00:32.1]} 27. Qe2 {[%clk 0:00:10.2]} 27... Rc8 {[%clk 0:00:28.9]} 28.
Qh5 {[%clk 0:00:09.7]} 28... Rc2 {[%clk 0:00:26.6]} 29. Kg1 {[%clk 0:00:06.3]}
29... Rec8 {[%clk 0:00:25]} 30. Qh4 {[%clk 0:00:04.6]} 30... Rc1 {[%clk
0:00:14.4]} 31. Rxc1 {[%clk 0:00:03.1]} 31... Rxc1+ {[%clk 0:00:14]} 32. Kh2
{[%clk 0:00:04]} 32... Qd6+ {[%clk 0:00:11.4]} 33. f4 {[%clk 0:00:04.3]} 33...
Rc6 {[%clk 0:00:07.1]} 34. Qg4+ {[%clk 0:00:03.4]} 34... Kh8 {[%clk 0:00:05.2]}
35. Qf5 {[%clk 0:00:04.3]} 35... Qe6 {[%clk 0:00:04.9]} 36. Qh5 {[%clk 0:00:05]}
36... Kg8 {[%clk 0:00:04.4]} 37. Qh4 {[%clk 0:00:04.3]} 37... b6 {[%clk
0:00:03.6]} 38. Qg3+ {[%clk 0:00:04.7]} 38... Kh8 {[%clk 0:00:03.8]} 39. Qf3
{[%clk 0:00:05]} 39... Kg8 {[%clk 0:00:04.2]} 40. Qg3+ {[%clk 0:00:05]} 40...
Kf8 {[%clk 0:00:04.9]} 41. Qh4 {[%clk 0:00:04.9]} 41... Qf5 {[%clk 0:00:05.5]}
42. Qh6+ {[%clk 0:00:02.4]} 42... Kg8 {[%clk 0:00:05.7]} 43. Qh4 {[%clk
0:00:02.3]} 43... Kg7 {[%clk 0:00:05.2]} 44. Qg3+ {[%clk 0:00:02.5]} 44... Kf8
{[%clk 0:00:05.5]} 45. Qh4 {[%clk 0:00:03.1]} 45... Ke7 {[%clk 0:00:06.2]} 46.
Qg3 {[%clk 0:00:01.9]} 46... Qe4 {[%clk 0:00:05.7]} 47. b4 {[%clk 0:00:02]}
47... axb4 {[%clk 0:00:05.7]} 48. axb4 {[%clk 0:00:02.9]} 48... Qf5 {[%clk
0:00:05]} 49. b5 {[%clk 0:00:03.1]} 49... Rc2 {[%clk 0:00:03.3]} 50. Bxb6 {[%clk
0:00:02.8]} 50... Qe4 {[%clk 0:00:02.7]} 51. Bd4 {[%clk 0:00:02.8]} 51... Kd7
{[%clk 0:00:03]} 52. b6 {[%clk 0:00:03.3]} 52... Kc6 {[%clk 0:00:03.5]} 53. f5
{[%clk 0:00:03]} 53... Kb7 {[%clk 0:00:01.6]} 54. Qg4 {[%clk 0:00:02.2]} 54...
Qxg4 {[%clk 0:00:01.3]} 55. hxg4 {[%clk 0:00:03.1]} 55... Ka6 {[%clk 0:00:01.9]}
56. Kg3 {[%clk 0:00:03.6]} 56... Kb7 {[%clk 0:00:02.4]} 57. Kf3 {[%clk
0:00:03.3]} 57... Ra2 {[%clk 0:00:03]} 58. g3 {[%clk 0:00:03.6]} 58... h6 {[%clk
0:00:02.8]} 59. Bc5 {[%clk 0:00:02.9]} 59... Kc6 {[%clk 0:00:03]} 60. Bd4 {[%clk
0:00:03.4]} 60... Rh2 {[%clk 0:00:03.1]} 61. Bxf6 {[%clk 0:00:03.3]} 61... Kxb6
{[%clk 0:00:03.2]} 62. g5 {[%clk 0:00:03.9]} 62... hxg5 {[%clk 0:00:03.1]} 63.
Kg4 {[%clk 0:00:04.5]} 63... Kc5 {[%clk 0:00:03.2]} 64. Kxg5 {[%clk 0:00:04.1]}
64... Kc4 {[%clk 0:00:03.9]} 65. Bd4 {[%clk 0:00:04.1]} 65... Kd3 {[%clk
0:00:03.5]} 66. Kf6 {[%clk 0:00:03.8]} 66... Ke4 {[%clk 0:00:04.1]} 67. g4
{[%clk 0:00:03.7]} 67... Rg2 {[%clk 0:00:04.6]} 68. Kxf7 {[%clk 0:00:03.3]}
68... Rxg4 {[%clk 0:00:04.7]} 69. Ke6 {[%clk 0:00:03.7]} 69... Rg8 {[%clk
0:00:02.1]} 70. f6 {[%clk 0:00:04.2]} 70... Re8+ {[%clk 0:00:02.1]} 71. Kd7
{[%clk 0:00:04.9]} 71... Rb8 {[%clk 0:00:02.7]} 72. f7 {[%clk 0:00:05.1]} 72...
Rb7+ {[%clk 0:00:03.2]} 73. Ke6 {[%clk 0:00:05.2]} 73... Rb8 {[%clk 0:00:02.9]}
74. Ke7 {[%clk 0:00:05.9]} 74... Rb7+ {[%clk 0:00:03.3]} 75. Kf6 {[%clk
0:00:06.6]} 75... Rb8 {[%clk 0:00:03.3]} 76. Kg7 {[%clk 0:00:07.3]} 76... Rb7
{[%clk 0:00:03.8]} 77. Kg8 {[%clk 0:00:07.9]} 1-0

[Event "*** Titled Tuesday Blitz"]
[Site "Chess.com"]
[Date "2021.02.02"]
[Round "11"]
[White "PotapovaM"]
[Black "RD4ever"]
[Result "0-1"]
[WhiteElo "2650"]
[BlackElo "2842"]
[TimeControl "180+1"]
[EndTime "12:08:58 PST"]
[Termination "RD4ever won by checkmate"]

1. d4 {[%clk 0:03:00.1]} 1... Nf6 {[%clk 0:02:59.8]} 2. c4 {[%clk 0:03:00.7]}
2... g6 {[%clk 0:03:00.3]} 3. Nc3 {[%clk 0:03:01.2]} 3... Bg7 {[%clk 0:03:01]}
4. e4 {[%clk 0:03:01.4]} 4... O-O {[%clk 0:03:01.7]} 5. h3 {[%clk 0:03:02.1]}
5... d6 {[%clk 0:03:01.2]} 6. Be3 {[%clk 0:03:02.8]} 6... c5 {[%clk 0:02:55.1]}
7. d5 {[%clk 0:03:01.3]} 7... e6 {[%clk 0:02:38.1]} 8. Bd3 {[%clk 0:03:01.1]}
8... exd5 {[%clk 0:02:36.9]} 9. exd5 {[%clk 0:03:02]} 9... Re8 {[%clk
0:02:36.9]} 10. Nf3 {[%clk 0:03:02.3]} 10... Rxe3+ {[%clk 0:02:35.1]} 11. fxe3
{[%clk 0:03:01.8]} 11... Qe7 {[%clk 0:02:34.7]} 12. e4 {[%clk 0:02:58.7]} 12...
Nbd7 {[%clk 0:02:32.2]} 13. O-O {[%clk 0:02:58.5]} 13... Nh5 {[%clk 0:02:31.2]}
14. Qd2 {[%clk 0:02:31.5]} 14... Ne5 {[%clk 0:02:25.4]} 15. Nxe5 {[%clk
0:02:20.6]} 15... Bxe5 {[%clk 0:02:26.3]} 16. Rf3 {[%clk 0:02:10.2]} 16... Bd7
{[%clk 0:02:24.8]} 17. Raf1 {[%clk 0:02:08.2]} 17... Rf8 {[%clk 0:02:21]} 18.
Ne2 {[%clk 0:02:07.5]} 18... a6 {[%clk 0:02:06.3]} 19. g4 {[%clk 0:01:43.7]}
19... Nf6 {[%clk 0:02:02.1]} 20. Qg5 {[%clk 0:01:35.4]} 20... Nxd5 {[%clk
0:02:00.6]} 21. Qxe7 {[%clk 0:01:06.7]} 21... Nxe7 {[%clk 0:02:01.5]} 22. b3
{[%clk 0:01:07.4]} 22... Kg7 {[%clk 0:01:59.8]} 23. Nf4 {[%clk 0:01:07.3]} 23...
Nc6 {[%clk 0:01:48]} 24. Nd5 {[%clk 0:01:01]} 24... Bd4+ {[%clk 0:01:46.7]} 25.
Kg2 {[%clk 0:00:57.6]} 25... Ne5 {[%clk 0:01:47.6]} 26. Rg3 {[%clk 0:00:57.6]}
26... b5 {[%clk 0:01:46.6]} 27. g5 {[%clk 0:00:51]} 27... Rb8 {[%clk 0:01:42.3]}
28. h4 {[%clk 0:00:34.7]} 28... h5 {[%clk 0:01:12.3]} 29. gxh6+ {[%clk
0:00:33.6]} 29... Kxh6 {[%clk 0:01:11.1]} 30. h5 {[%clk 0:00:30.4]} 30... Kg7
{[%clk 0:00:46.6]} 31. Nf6 {[%clk 0:00:16.6]} 31... Be6 {[%clk 0:00:29.9]} 32.
hxg6 {[%clk 0:00:15.5]} 32... fxg6 {[%clk 0:00:30.8]} 33. Nh5+ {[%clk
0:00:14.7]} 33... Kg8 {[%clk 0:00:28.7]} 34. Nf6+ {[%clk 0:00:14.6]} 34... Kg7
{[%clk 0:00:29]} 35. Nh5+ {[%clk 0:00:14.9]} 35... Kg8 {[%clk 0:00:29.3]} 36.
Nf6+ {[%clk 0:00:15.1]} 36... Kh8 {[%clk 0:00:29.8]} 37. Nd5 {[%clk 0:00:05.8]}
37... Kg7 {[%clk 0:00:28.7]} 38. Rh1 {[%clk 0:00:02.7]} 38... bxc4 {[%clk
0:00:28.3]} 39. Bxc4 {[%clk 0:00:02.6]} 39... Nxc4 {[%clk 0:00:28.7]} 40. bxc4
{[%clk 0:00:03.5]} 40... Rb2+ {[%clk 0:00:28.8]} 41. Kf3 {[%clk 0:00:04.2]}
41... Be5 {[%clk 0:00:27.2]} 42. Rg2 {[%clk 0:00:04]} 42... Rb7 {[%clk
0:00:24.6]} 43. Rhg1 {[%clk 0:00:04.2]} 43... Bf7 {[%clk 0:00:24.8]} 44. Rc2
{[%clk 0:00:03.8]} 44... Bd4 {[%clk 0:00:24.8]} 45. Rf1 {[%clk 0:00:04.1]} 45...
Be8 {[%clk 0:00:23]} 46. Kg2 {[%clk 0:00:04.3]} 46... Ba4 {[%clk 0:00:22.7]} 47.
Re2 {[%clk 0:00:04.1]} 47... Bc6 {[%clk 0:00:19.5]} 48. Rfe1 {[%clk 0:00:04.2]}
48... Rf7 {[%clk 0:00:19]} 49. Rf1 {[%clk 0:00:04]} 49... Rb7 {[%clk 0:00:18.9]}
50. Rfe1 {[%clk 0:00:04.4]} 50... Rb8 {[%clk 0:00:18.8]} 51. Rf1 {[%clk
0:00:04.6]} 51... Re8 {[%clk 0:00:18.4]} 52. Rfe1 {[%clk 0:00:04.8]} 52... Rb8
{[%clk 0:00:18.2]} 53. Rf1 {[%clk 0:00:04.9]} 53... Be5 {[%clk 0:00:18.8]} 54.
Ref2 {[%clk 0:00:04.3]} 54... Rb7 {[%clk 0:00:17.4]} 55. Re2 {[%clk 0:00:04.2]}
55... a5 {[%clk 0:00:17.8]} 56. Ref2 {[%clk 0:00:04.5]} 56... a4 {[%clk
0:00:18.3]} 57. Rf3 {[%clk 0:00:04]} 57... Be8 {[%clk 0:00:15.8]} 58. Nf6 {[%clk
0:00:03.3]} 58... Bc6 {[%clk 0:00:14.6]} 59. Nd5 {[%clk 0:00:03.4]} 59... Bd4
{[%clk 0:00:11.8]} 60. Rf4 {[%clk 0:00:02.9]} 60... a3 {[%clk 0:00:10.9]} 61.
R4f3 {[%clk 0:00:02]} 61... Bb2 {[%clk 0:00:09.2]} 62. Kh3 {[%clk 0:00:02.4]}
62... Bd7+ {[%clk 0:00:09.1]} 63. Kg3 {[%clk 0:00:02]} 63... Ba4 {[%clk
0:00:09.5]} 64. Kh4 {[%clk 0:00:01.5]} 64... Bc2 {[%clk 0:00:09.7]} 65. Kg3
{[%clk 0:00:02]} 65... Bxe4 {[%clk 0:00:09.8]} 66. R3f2 {[%clk 0:00:02]} 66...
Be5+ {[%clk 0:00:09.4]} 67. Kh3 {[%clk 0:00:01.4]} 67... Bf5+ {[%clk 0:00:09.4]}
68. Kg2 {[%clk 0:00:02.1]} 68... Rb2 {[%clk 0:00:09.4]} 69. Kf3 {[%clk
0:00:01.2]} 69... Bd3 {[%clk 0:00:09.4]} 70. Re1 {[%clk 0:00:01.1]} 70... Bxc4
{[%clk 0:00:09.4]} 71. Rg2 {[%clk 0:00:01.3]} 71... Bxd5+ {[%clk 0:00:09.5]} 72.
Ke3 {[%clk 0:00:01.1]} 72... Bxg2 {[%clk 0:00:08.4]} 73. Rd1 {[%clk 0:00:01.8]}
73... Bd4+ {[%clk 0:00:08.6]} 74. Kd3 {[%clk 0:00:01.9]} 74... Bd5 {[%clk
0:00:09.1]} 75. Re1 {[%clk 0:00:02.4]} 75... Bxa2 {[%clk 0:00:09.3]} 76. Re7+
{[%clk 0:00:02.9]} 76... Kf6 {[%clk 0:00:09.3]} 77. Re8 {[%clk 0:00:03.2]} 77...
Be5 {[%clk 0:00:09.5]} 78. Rf8+ {[%clk 0:00:03]} 78... Bf7 {[%clk 0:00:10.4]}
79. Rd8 {[%clk 0:00:02.7]} 79... a2 {[%clk 0:00:10.6]} 80. Ra8 {[%clk
0:00:03.6]} 80... a1=Q {[%clk 0:00:11]} 81. Rxa1 {[%clk 0:00:03.8]} 81... Rb3+
{[%clk 0:00:11.4]} 82. Ke4 {[%clk 0:00:04.3]} 82... d5# {[%clk 0:00:11.3]} 0-1

[Event "*** Titled Tuesday Blitz"]
[Site "Chess.com"]
[Date "2021.02.02"]
[Round "11"]
[White "bocah_sakit"]
[Black "Jospem"]
[Result "1-0"]
[WhiteElo "2842"]
[BlackElo "3012"]
[TimeControl "180+1"]
[EndTime "12:09:01 PST"]
[Termination "bocah_sakit won on time"]

1. e4 {[%clk 0:03:00.9]} 1... c5 {[%clk 0:02:59.3]} 2. Nf3 {[%clk 0:03:01]} 2...
d6 {[%clk 0:02:58.7]} 3. d4 {[%clk 0:03:01.6]} 3... cxd4 {[%clk 0:02:59.3]} 4.
Nxd4 {[%clk 0:03:02.5]} 4... Nf6 {[%clk 0:02:59.5]} 5. Nc3 {[%clk 0:03:03.1]}
5... a6 {[%clk 0:02:56.2]} 6. Bg5 {[%clk 0:03:03.5]} 6... Nbd7 {[%clk
0:02:49.5]} 7. f4 {[%clk 0:03:03.1]} 7... Qb6 {[%clk 0:02:47.8]} 8. a3 {[%clk
0:02:55.9]} 8... h6 {[%clk 0:02:46.3]} 9. Bh4 {[%clk 0:02:52.2]} 9... g5 {[%clk
0:02:38.8]} 10. fxg5 {[%clk 0:02:50.1]} 10... hxg5 {[%clk 0:02:39.7]} 11. Bxg5
{[%clk 0:02:50.8]} 11... e6 {[%clk 0:02:40]} 12. Nb3 {[%clk 0:02:45.7]} 12...
Be7 {[%clk 0:02:16.3]} 13. Qd2 {[%clk 0:02:45.8]} 13... Ng4 {[%clk 0:02:01.2]}
14. Bxe7 {[%clk 0:02:39.8]} 14... Kxe7 {[%clk 0:02:02.1]} 15. Nd4 {[%clk
0:02:22.6]} 15... Nde5 {[%clk 0:01:38.6]} 16. O-O-O {[%clk 0:02:20.4]} 16... Bd7
{[%clk 0:01:38.9]} 17. h3 {[%clk 0:02:13.2]} 17... Nf6 {[%clk 0:01:38.9]} 18.
Be2 {[%clk 0:02:10]} 18... Rag8 {[%clk 0:01:29.4]} 19. g4 {[%clk 0:02:09.4]}
19... Qc5 {[%clk 0:01:29]} 20. Rdf1 {[%clk 0:02:06.8]} 20... b5 {[%clk
0:01:28.1]} 21. Qe3 {[%clk 0:02:02.6]} 21... Ne8 {[%clk 0:01:23.5]} 22. g5
{[%clk 0:01:52.5]} 22... Ng6 {[%clk 0:01:20]} 23. Rf2 {[%clk 0:01:39.7]} 23...
Rh7 {[%clk 0:01:01.6]} 24. Bg4 {[%clk 0:01:33.1]} 24... Ne5 {[%clk 0:00:59.2]}
25. Be2 {[%clk 0:01:31.6]} 25... Ng6 {[%clk 0:00:59.4]} 26. b4 {[%clk
0:01:21.5]} 26... Qe5 {[%clk 0:00:51.8]} 27. Rhf1 {[%clk 0:01:17.8]} 27... Nh8
{[%clk 0:00:45.9]} 28. Nf3 {[%clk 0:01:09.8]} 28... Rxh3 {[%clk 0:00:42.6]} 29.
Nxe5 {[%clk 0:00:27.5]} 29... Rxe3 {[%clk 0:00:42.8]} 30. Rxf7+ {[%clk
0:00:27.6]} 30... Nxf7 {[%clk 0:00:39.8]} 31. Rxf7+ {[%clk 0:00:28.5]} 31... Kd8
{[%clk 0:00:40.7]} 32. Nxd7 {[%clk 0:00:19.6]} 32... Rxc3 {[%clk 0:00:35.3]} 33.
Nf6 {[%clk 0:00:19.2]} 33... Nxf6 {[%clk 0:00:28.3]} 34. gxf6 {[%clk 0:00:20.1]}
34... Rc7 {[%clk 0:00:26.4]} 35. Bh5 {[%clk 0:00:15.6]} 35... Rh8 {[%clk
0:00:12.7]} 36. Rg7 {[%clk 0:00:10.4]} 36... Rxg7 {[%clk 0:00:06.7]} 37. fxg7
{[%clk 0:00:11.3]} 37... Rg8 {[%clk 0:00:07.6]} 38. Bf7 {[%clk 0:00:11.5]} 38...
Rxg7 {[%clk 0:00:07.8]} 39. Bxe6 {[%clk 0:00:12.4]} 39... Rg3 {[%clk 0:00:07.8]}
40. Kb2 {[%clk 0:00:11.7]} 40... Kc7 {[%clk 0:00:07.7]} 41. Bd5 {[%clk
0:00:11.9]} 41... Kb6 {[%clk 0:00:08.2]} 42. c4 {[%clk 0:00:11.8]} 42... Re3
{[%clk 0:00:05.5]} 43. cxb5 {[%clk 0:00:06.5]} 43... axb5 {[%clk 0:00:06.4]} 44.
Ka2 {[%clk 0:00:06.6]} 44... Kc7 {[%clk 0:00:07.1]} 45. Kb2 {[%clk 0:00:07.1]}
45... Kd7 {[%clk 0:00:07.8]} 46. Ka2 {[%clk 0:00:07.4]} 46... Ke7 {[%clk
0:00:07.4]} 47. Bc6 {[%clk 0:00:07.6]} 47... Ke6 {[%clk 0:00:05.5]} 48. Kb2
{[%clk 0:00:07.6]} 48... Ke5 {[%clk 0:00:05.5]} 49. Bxb5 {[%clk 0:00:07.8]}
49... Rxe4 {[%clk 0:00:05.5]} 50. Kc3 {[%clk 0:00:07.9]} 50... Re3+ {[%clk
0:00:05.3]} 51. Bd3 {[%clk 0:00:08.5]} 51... d5 {[%clk 0:00:03.3]} 52. a4 {[%clk
0:00:09]} 52... Kd6 {[%clk 0:00:03.7]} 53. a5 {[%clk 0:00:09]} 53... Kc6 {[%clk
0:00:03]} 54. Kd4 {[%clk 0:00:08.8]} 54... Rh3 {[%clk 0:00:02.7]} 55. b5+ {[%clk
0:00:09.4]} 55... Kd6 {[%clk 0:00:03.2]} 56. b6 {[%clk 0:00:09.7]} 56... Rh4+
{[%clk 0:00:04.1]} 57. Kc3 {[%clk 0:00:10]} 57... Kc6 {[%clk 0:00:04.6]} 58. Kb3
{[%clk 0:00:07]} 58... Rh3 {[%clk 0:00:04.6]} 59. Kc3 {[%clk 0:00:07.5]} 59...
Rh4 {[%clk 0:00:05.1]} 60. Kb3 {[%clk 0:00:07.7]} 60... Kc5 {[%clk 0:00:04.8]}
61. Kc3 {[%clk 0:00:03.8]} 61... Rg4 {[%clk 0:00:01.2]} 62. b7 {[%clk 0:00:03]}
62... Rg8 {[%clk 0:00:01.3]} 63. a6 {[%clk 0:00:03.6]} 63... Kb6 {[%clk
0:00:01.8]} 64. Kd4 {[%clk 0:00:04.1]} 64... Rd8 {[%clk 0:00:02.1]} 65. Be2
{[%clk 0:00:04]} 65... Ka7 {[%clk 0:00:01]} 66. Kc5 {[%clk 0:00:02.7]} 66... d4
{[%clk 0:00:01.9]} 67. Bd3 {[%clk 0:00:03.2]} 67... Rd7 {[%clk 0:00:02.1]} 68.
Kc6 {[%clk 0:00:03.6]} 68... Rg7 {[%clk 0:00:02.7]} 69. Kd5 {[%clk 0:00:04]}
69... Rg4 {[%clk 0:00:03.2]} 70. Kc6 {[%clk 0:00:03.9]} 70... Rg3 {[%clk
0:00:03.5]} 71. Kc7 {[%clk 0:00:04.5]} 71... Rg7+ {[%clk 0:00:03.9]} 72. Kd6
{[%clk 0:00:05.2]} 72... Kb8 {[%clk 0:00:03.7]} 73. Ke5 {[%clk 0:00:04.9]} 73...
Rg4 {[%clk 0:00:04.3]} 74. Kd5 {[%clk 0:00:05.1]} 74... Rh4 {[%clk 0:00:04.7]}
75. Kc5 {[%clk 0:00:05.6]} 75... Ka7 {[%clk 0:00:04.5]} 76. Kd5 {[%clk
0:00:05.4]} 76... Rg4 {[%clk 0:00:03.9]} 77. Kc6 {[%clk 0:00:04.8]} 77... Rg3
{[%clk 0:00:04.2]} 78. Kc7 {[%clk 0:00:05.4]} 78... Rg7+ {[%clk 0:00:04.3]} 79.
Kd6 {[%clk 0:00:06.1]} 79... Kb8 {[%clk 0:00:04.3]} 80. Kd5 {[%clk 0:00:05]}
80... Rd7+ {[%clk 0:00:04.6]} 81. Kc6 {[%clk 0:00:05]} 81... Re7 {[%clk
0:00:03.5]} 82. Bc4 {[%clk 0:00:03.6]} 82... Re3 {[%clk 0:00:03.4]} 83. Kb6
{[%clk 0:00:03.1]} 83... Re6+ {[%clk 0:00:01.7]} 84. Bxe6 {[%clk 0:00:02.9]} 1-0